fUSD/lending_fUSD_20250123
["ID","MTS","AMOUNT","RATE_DAILY","PERIOD"]
[350111516,1737631860312,-500.0,0.00017157,2]
[350111517,1737631860321,-500.0,0.00017157,2]
[350111518,1737631860331,-500.0,0.00017157,2]
[350111519,1737631860340,-1568.47,0.00017157,2]
[350111520,1737631860349,-500.0,0.00017157,2]
[350111521,1737631860360,-500.0,0.00017157,2]
[350111522,1737631860372,-500.0,0.00017157,2]
[350111523,1737631860382,-938.99,0.00017157,2]
[350111524,1737631860391,-598.62,0.00017157,2]
[350111525,1737631860524,-907.35,0.00017157,2]
[350111526,1737631860535,-2004.77,0.00017157,2]
[350111527,1737631860546,-1108.37,0.00017157,2]
[350111528,1737631860556,-500.0,0.00017157,2]
[350111529,1737631860566,-500.0,0.00017157,2]
[350111530,1737631860575,-500.0,0.00017157,2]
[350111531,1737631860584,-500.0,0.00017157,2]
[350111532,1737631860595,-500.0,0.00017157,2]
[350111533,1737631860605,-500.0,0.00017157,2]
[350111534,1737631860616,-1096.79,0.00017157,2]
[350111535,1737631860626,-762.96,0.00017157,2]
[350111536,1737631860636,-1619.91,0.00017157,2]
[350111537,1737631860646,-613.59,0.00017157,2]
[350111538,1737631860656,-577.57,0.00017157,2]
[350111539,1737631860670,-2795.0,0.00017157,2]
[350111540,1737631860679,-243.45,0.00017173,2]
[350111541,1737631860688,-152.3,0.00017195,2]
[350111542,1737631860699,-525.19522392,0.00017245,2]
[350111543,1737631860709,-500.0,0.00017255,2]
[350111544,1737631860721,-723.2,0.00017255,2]
[350111545,1737631860733,-500.0,0.00017255,2]
[350111546,1737631860742,-500.0,0.00017255,2]
[350111547,1737631860751,-500.0,0.00017255,2]
[350111548,1737631860760,-685.2,0.00017255,2]
[350111549,1737631860770,-863.07,0.00017255,2]
[350111550,1737631860779,-910.82,0.00017255,2]
[350111551,1737631860788,-1325.4,0.00017255,2]
[350111552,1737631860798,-1016.78,0.00017255,2]
[350111553,1737631860807,-2418.71,0.00017255,2]
[350111554,1737631860820,-4482.12,0.00017255,2]
[350111555,1737631860830,-902.93,0.00017255,2]
[350111556,1737631860839,-874.19,0.00017255,2]
[350111557,1737631860848,-2079.62,0.00017255,2]
[350111558,1737631860859,-500.0,0.00017255,2]
[350111559,1737631860868,-1130.39,0.00017255,2]
[350111560,1737631860877,-500.0,0.00017255,2]
[350111561,1737631860886,-109860.67121176,0.00017256,2]
[350111565,1737632642466,157.03,0.00016658,30]
[350111566,1737632791353,-410.57,0.00010137,2]
[350111567,1737632791375,-188.76,0.00012329,2]
[350111568,1737632791400,-250.0,0.00013867,2]
[350111569,1737632791421,-398.06197608,0.00014055,2]
[350111572,1737632831599,500.0,0.00022,120]
[350111597,1737633031576,-151.27,0.00010137,2]
[350111598,1737633031585,-144.22189213,0.00013166,2]
[350111599,1737633031630,-1182.69810787,0.00013166,2]
[350111600,1737633031639,-1852.42,0.00014899,2]
[350111601,1737633031649,-803.11,0.00014937,2]
[350111602,1737633031658,-550.0,0.00015,2]
[350111603,1737633031667,-500.0,0.00015131,2]
[350111604,1737633031676,-3155.54,0.00015213,2]
[350111605,1737633031685,-250.0,0.00015248,2]
[350111606,1737633031694,-595.36,0.00015248,2]
[350111607,1737633031703,-1000.0,0.00015349,2]
[350111608,1737633031712,-174.71,0.00015349,2]
[350111609,1737633031722,-169.92,0.00015406,2]
[350111610,1737633031731,-1326.92,0.0001543,2]
[350111611,1737633031739,-174.43,0.00015488,2]
[350111612,1737633031748,-806.41,0.00015577,2]
[350111613,1737633031757,-150.0,0.00015589,2]
[350111614,1737633031767,-2506.56,0.00015611,2]
[350111615,1737633031776,-500.0,0.00015616,2]
[350111616,1737633031785,-200.0,0.00015718,2]
[350111617,1737633031795,-250.0,0.00015761,2]
[350111618,1737633031803,-250.0,0.00015794,2]
[350111619,1737633031814,-200.0,0.00015806,2]
[350111620,1737633031823,-23900.0,0.00015824,2]
[350111621,1737633031832,-1320.73030229,0.000159,2]
[350111622,1737633031841,-1461.5637482,0.00016,2]
[350111623,1737633031851,-316.0,0.00016111,2]
[350111624,1737633031860,-244.21,0.0001614,2]
[350111625,1737633032029,-975.25018224,0.00016337,2]
[350111626,1737633032039,-5045.55976466,0.00016338,2]
[350111627,1737633032048,-175.44244942,0.00016338,2]
[350111628,1737633032058,-1610.6706,0.00016338,2]
[350111629,1737633032067,-279.4361,0.00016338,2]
[350111630,1737633032076,-2632.7768,0.00016338,2]
[350111631,1737633032086,-5000.0,0.00016338,2]
[350111632,1737633032095,-2500.0,0.00016338,2]
[350111633,1737633032104,-174.71,0.00016372,2]
[350111634,1737633032113,-502.77695158,0.00016438,2]
[350111635,1737633032122,-500.0,0.00016438,2]
[350111636,1737633032131,-638.19262268,0.00016438,2]
[350111637,1737633032140,-512.70496885,0.00016438,2]
[350111638,1737633032149,-715.55,0.00016438,2]
[350111639,1737633032158,-500.0,0.00016438,2]
[350111640,1737633032167,-502.03960462,0.00016438,2]
[350111642,1737633032176,-502.50842499,0.00016438,2]
[350111644,1737633032185,-500.0,0.00016438,2]
[350111646,1737633032194,-503.08975116,0.00016438,2]
[350111648,1737633032203,-500.0,0.00016438,2]
[350111650,1737633032212,-500.0,0.00016438,2]
[350111652,1737633032221,-505.16849597,0.00016438,2]
[350111654,1737633032229,-500.0,0.00016438,2]
[350111656,1737633032239,-500.0,0.00016438,2]
[350111658,1737633032248,-500.0,0.00016438,2]
[350111660,1737633032257,-500.0,0.00016438,2]
[350111662,1737633032266,-500.0,0.00016438,2]
[350111664,1737633032275,-514.67849806,0.00016438,2]
[350111666,1737633032287,-500.0,0.00016438,2]
[350111668,1737633032306,-500.0,0.00016438,2]
[350111670,1737633032320,-500.0,0.00016438,2]
[350111672,1737633032329,-505.36990196,0.00016438,2]
[350111674,1737633032337,-500.0,0.00016438,2]
[350111675,1737633032347,-500.0,0.00016438,2]
[350111678,1737633032358,-504.76860549,0.00016438,2]
[350111680,1737633032368,-500.0,0.00016438,2]
[350111682,1737633032377,-500.0,0.00016438,2]
[350111684,1737633032386,-500.0,0.00016438,2]
[350111686,1737633032395,-500.0,0.00016438,2]
[350111688,1737633032404,-500.0,0.00016438,2]
[350111690,1737633032413,-500.0,0.00016438,2]
[350111692,1737633032423,-512.44771622,0.00016438,2]
[350111694,1737633032432,-500.0,0.00016438,2]
[350111696,1737633032441,-500.0,0.00016438,2]
[350111698,1737633032450,-500.0,0.00016438,2]
[350111700,1737633032459,-500.0,0.00016438,2]
[350111702,1737633032468,-500.0,0.00016438,2]
[350111704,1737633032477,-500.0,0.00016438,2]
[350111706,1737633032486,-500.0,0.00016438,2]
[350111708,1737633032495,-500.0,0.00016438,2]
[350111710,1737633032504,-500.0,0.00016438,2]
[350111711,1737633032513,-500.0,0.00016438,2]
[350111713,1737633032522,-633.50127237,0.00016438,2]
[350111715,1737633032532,-500.0,0.00016438,2]
[350111717,1737633032541,-500.0,0.00016438,2]
[350111719,1737633032550,-500.0,0.00016438,2]
[350111722,1737633032560,-500.0,0.00016438,2]
[350111724,1737633032570,-500.0,0.00016438,2]
[350111726,1737633032579,-500.0,0.00016438,2]
[350111728,1737633032587,-500.0,0.00016438,2]
[350111729,1737633032597,-500.0,0.00016438,2]
[350111731,1737633032606,-500.0,0.00016438,2]
[350111733,1737633032615,-479.66805175,0.00016438,2]
[350111735,1737633032624,-616.58114154,0.00016438,2]
[350111737,1737633032633,-221.60555751,0.00016438,2]
[350111739,1737633032643,-500.0,0.00016438,2]
[350111741,1737633032651,-500.0,0.00016438,2]
[350111743,1737633032661,-500.0,0.00016438,2]
[350111745,1737633032670,-500.0,0.00016438,2]
[350111747,1737633032679,-500.0,0.00016438,2]
[350111749,1737633032689,-500.0,0.00016438,2]
[350111751,1737633032699,-500.0,0.00016438,2]
[350111753,1737633032708,-500.0,0.00016438,2]
[350111755,1737633032717,-500.0,0.00016438,2]
[350111757,1737633032726,-501.64659035,0.00016438,2]
[350111759,1737633032735,-500.0,0.00016438,2]
[350111761,1737633032744,-500.0,0.00016438,2]
[350111763,1737633032754,-500.0,0.00016438,2]
[350111765,1737633032764,-508.71092717,0.00016438,2]
[350111767,1737633032773,-500.0,0.00016438,2]
[350111769,1737633032781,-317.94725389,0.00016438,2]
[350111771,1737633032790,-500.0,0.00016438,2]
[350111773,1737633032800,-500.0,0.00016438,2]
[350111774,1737633032809,-501.94683559,0.00016438,2]
[350111776,1737633032818,-502.48690263,0.00016438,2]
[350111778,1737633032828,-500.0,0.00016438,2]
[350111780,1737633032838,-506.99781126,0.00016438,2]
[350111782,1737633032847,-500.0,0.00016438,2]
[350111784,1737633032856,-500.0,0.00016438,2]
[350111786,1737633032865,-500.0,0.00016438,2]
[350111788,1737633032874,-500.0,0.00016438,2]
[350111790,1737633032884,-504.21148236,0.00016438,2]
[350111792,1737633032893,-500.0,0.00016438,2]
[350111794,1737633032902,-500.0,0.00016438,2]
[350111796,1737633032912,-505.61508323,0.00016438,2]
[350111798,1737633032921,-501.43952309,0.00016438,2]
[350111800,1737633032930,-500.0,0.00016438,2]
[350111802,1737633032940,-500.0,0.00016438,2]
[350111804,1737633032950,-505.36052917,0.00016438,2]
[350111806,1737633032959,-500.0,0.00016438,2]
[350111808,1737633032969,-503.69807514,0.00016438,2]
[350111810,1737633032979,-500.0,0.00016438,2]
[350111812,1737633032988,-500.0,0.00016438,2]
[350111814,1737633032997,-500.0,0.00016438,2]
[350111816,1737633033006,-500.0,0.00016438,2]
[350111818,1737633033016,-500.0,0.00016438,2]
[350111820,1737633033025,-500.0,0.00016438,2]
[350111822,1737633033035,-500.0,0.00016438,2]
[350111824,1737633033044,-506.85197881,0.00016438,2]
[350111826,1737633033054,-500.0,0.00016438,2]
[350111828,1737633033065,-500.0,0.00016438,2]
[350111830,1737633033075,-500.0,0.00016438,2]
[350111832,1737633033084,-552.06238225,0.00016438,2]
[350111834,1737633033094,-538.61095487,0.00016438,2]
[350111836,1737633033103,-500.0,0.00016438,2]
[350111838,1737633033112,-500.0,0.00016438,2]
[350111840,1737633033122,-500.0,0.00016438,2]
[350111842,1737633033131,-500.0,0.00016438,2]
[350111844,1737633033143,-500.0,0.00016438,2]
[350111846,1737633033153,-500.0,0.00016438,2]
[350111848,1737633033163,-500.0,0.00016438,2]
[350111850,1737633033172,-500.0,0.00016438,2]
[350111852,1737633033182,-500.0,0.00016438,2]
[350111854,1737633033191,-500.0,0.00016438,2]
[350111856,1737633033200,-500.0,0.00016438,2]
[350111858,1737633033210,-500.0,0.00016438,2]
[350111860,1737633033219,-500.0,0.00016438,2]
[350111862,1737633033228,-502.6931695,0.00016438,2]
[350111864,1737633033237,-500.0,0.00016438,2]
[350111866,1737633033246,-295.80755383,0.00016438,2]
[350111868,1737633033255,-500.0,0.00016438,2]
[350111870,1737633033266,-500.0,0.00016438,2]
[350111872,1737633033275,-505.39454276,0.00016438,2]
[350111874,1737633033286,-490.87246993,0.00016438,2]
[350111876,1737633033296,-500.0,0.00016438,2]
[350111878,1737633033306,-412.00723072,0.00016438,2]
[350111880,1737633033316,-504.71653075,0.00016438,2]
[350111882,1737633033326,-500.0,0.00016438,2]
[350111884,1737633033336,-509.29031605,0.00016438,2]
[350111886,1737633033345,-500.0,0.00016438,2]
[350111888,1737633033354,-500.0,0.00016438,2]
[350111889,1737633033363,-500.0,0.00016438,2]
[350111892,1737633033374,-519.03523196,0.00016438,2]
[350111893,1737633033383,-500.0,0.00016438,2]
[350111896,1737633033394,-500.0,0.00016438,2]
[350111897,1737633033403,-500.0,0.00016438,2]
[350111899,1737633033413,-500.0,0.00016438,2]
[350111902,1737633033423,-508.84859052,0.00016438,2]
[350111903,1737633033432,-500.0,0.00016438,2]
[350111906,1737633033442,-500.0,0.00016438,2]
[350111908,1737633033452,-500.0,0.00016438,2]
[350111910,1737633033461,-500.0,0.00016438,2]
[350111911,1737633033471,-518.80489699,0.00016438,2]
[350111913,1737633033482,-500.0,0.00016438,2]
[350111916,1737633033492,-500.0,0.00016438,2]
[350111917,1737633033501,-500.0,0.00016438,2]
[350111919,1737633033511,-503.152126,0.00016438,2]
[350111921,1737633033520,-511.71926902,0.00016438,2]
[350111923,1737633033530,-502.99392352,0.00016438,2]
[350111925,1737633033540,-500.0,0.00016438,2]
[350111927,1737633033550,-500.0,0.00016438,2]
[350111930,1737633033560,-504.40868212,0.00016438,2]
[350111931,1737633033570,-500.0,0.00016438,2]
[350111933,1737633033580,-500.0,0.00016438,2]
[350111936,1737633033591,-504.63966434,0.00016438,2]
[350111938,1737633033600,-500.0,0.00016438,2]
[350111939,1737633033610,-500.0,0.00016438,2]
[350111941,1737633033619,-500.0,0.00016438,2]
[350111943,1737633033629,-500.0,0.00016438,2]
[350111945,1737633033638,-506.64112622,0.00016438,2]
[350111947,1737633033648,-500.0,0.00016438,2]
[350111950,1737633033657,-500.0,0.00016438,2]
[350111951,1737633033667,-500.0,0.00016438,2]
[350111954,1737633033677,-500.0,0.00016438,2]
[350111956,1737633033687,-500.0,0.00016438,2]
[350111957,1737633033696,-500.0,0.00016438,2]
[350111958,1737633033705,-500.0,0.00016438,2]
[350111959,1737633033715,-502.7774876,0.00016438,2]
[350111960,1737633033724,-510.70626699,0.00016438,2]
[350111962,1737633033734,-500.0,0.00016438,2]
[350111964,1737633033743,-500.0,0.00016438,2]
[350111966,1737633033752,-500.0,0.00016438,2]
[350111968,1737633033762,-500.0,0.00016438,2]
[350111970,1737633033772,-500.0,0.00016438,2]
[350111972,1737633033781,-500.0,0.00016438,2]
[350111974,1737633033791,-500.0,0.00016438,2]
[350111976,1737633033801,-621.26871555,0.00016438,2]
[350111977,1737633033811,-505.93895286,0.00016438,2]
[350111980,1737633033821,-500.0,0.00016438,2]
[350111982,1737633033831,-500.0,0.00016438,2]
[350111983,1737633033840,-502.54689991,0.00016438,2]
[350111985,1737633033850,-500.0,0.00016438,2]
[350111987,1737633033860,-500.0,0.00016438,2]
[350111989,1737633033870,-500.0,0.00016438,2]
[350111991,1737633033880,-500.0,0.00016438,2]
[350111993,1737633033889,-500.0,0.00016438,2]
[350111995,1737633033898,-500.0,0.00016438,2]
[350111997,1737633033908,-500.0,0.00016438,2]
[350111999,1737633033918,-500.0,0.00016438,2]
[350112001,1737633033927,-500.0,0.00016438,2]
[350112003,1737633033937,-500.0,0.00016438,2]
[350112006,1737633033947,-500.0,0.00016438,2]
[350112008,1737633033957,-500.0,0.00016438,2]
[350112010,1737633033966,-500.0,0.00016438,2]
[350112012,1737633033977,-500.0,0.00016438,2]
[350112013,1737633033987,-506.22419594,0.00016438,2]
[350112016,1737633033997,-500.0,0.00016438,2]
[350112017,1737633034006,-500.0,0.00016438,2]
[350112019,1737633034017,-500.0,0.00016438,2]
[350112020,1737633034026,-505.16553549,0.00016438,2]
[350112021,1737633034036,-500.0,0.00016438,2]
[350112022,1737633034045,-500.0,0.00016438,2]
[350112023,1737633034054,-500.0,0.00016438,2]
[350112024,1737633034070,-502.87909864,0.00016438,2]
[350112025,1737633034080,-500.0,0.00016438,2]
[350112026,1737633034090,-500.0,0.00016438,2]
[350112027,1737633034099,-500.0,0.00016438,2]
[350112029,1737633034111,-500.0,0.00016438,2]
[350112030,1737633034120,-500.0,0.00016438,2]
[350112032,1737633034131,-505.58725743,0.00016438,2]
[350112034,1737633034140,-500.0,0.00016438,2]
[350112036,1737633034150,-513.89050523,0.00016438,2]
[350112038,1737633034160,-502.94594265,0.00016438,2]
[350112040,1737633034170,-500.0,0.00016438,2]
[350112042,1737633034180,-500.0,0.00016438,2]
[350112044,1737633034190,-500.0,0.00016438,2]
[350112046,1737633034200,-500.0,0.00016438,2]
[350112048,1737633034209,-500.0,0.00016438,2]
[350112050,1737633034219,-505.56812126,0.00016438,2]
[350112052,1737633034228,-500.0,0.00016438,2]
[350112054,1737633034238,-500.0,0.00016438,2]
[350112056,1737633034248,-500.0,0.00016438,2]
[350112058,1737633034257,-515.09790271,0.00016438,2]
[350112060,1737633034267,-500.0,0.00016438,2]
[350112062,1737633034276,-508.71980161,0.00016438,2]
[350112064,1737633034288,-500.0,0.00016438,2]
[350112066,1737633034298,-509.15626747,0.00016438,2]
[350112068,1737633034307,-500.0,0.00016438,2]
[350112070,1737633034318,-500.0,0.00016438,2]
[350112072,1737633034329,-500.0,0.00016438,2]
[350112074,1737633034339,-500.0,0.00016438,2]
[350112076,1737633034349,-500.0,0.00016438,2]
[350112078,1737633034358,-572.28,0.00016438,2]
[350112080,1737633034369,-503.28548461,0.00016438,2]
[350112082,1737633034380,-500.0,0.00016438,2]
[350112083,1737633034389,-500.0,0.00016438,2]
[350112084,1737633034398,-500.0,0.00016438,2]
[350112085,1737633034407,-500.0,0.00016438,2]
[350112086,1737633034416,-500.0,0.00016438,2]
[350112087,1737633034426,-505.83962199,0.00016438,2]
[350112088,1737633034435,-500.0,0.00016438,2]
[350112089,1737633034444,-500.0,0.00016438,2]
[350112090,1737633034454,-500.0,0.00016438,2]
[350112091,1737633034463,-500.0,0.00016438,2]
[350112092,1737633034472,-820.78,0.00016438,2]
[350112093,1737633034482,-500.0,0.00016438,2]
[350112094,1737633034491,-500.0,0.00016438,2]
[350112095,1737633034500,-602.73391875,0.00016438,2]
[350112096,1737633034509,-500.0,0.00016438,2]
[350112097,1737633034518,-500.0,0.00016438,2]
[350112098,1737633034528,-504.6326069,0.00016438,2]
[350112099,1737633034539,-501.18970478,0.00016438,2]
[350112100,1737633034549,-510.06330489,0.00016438,2]
[350112101,1737633034558,-500.0,0.00016438,2]
[350112102,1737633034569,-500.0,0.00016438,2]
[350112103,1737633034579,-500.0,0.00016438,2]
[350112104,1737633034715,-513.37199484,0.00016438,2]
[350112105,1737633034726,-500.0,0.00016438,2]
[350112106,1737633034736,-500.0,0.00016438,2]
[350112107,1737633034746,-500.0,0.00016438,2]
[350112108,1737633034756,-500.0,0.00016438,2]
[350112109,1737633034766,-500.0,0.00016438,2]
[350112110,1737633034775,-500.0,0.00016438,2]
[350112111,1737633034784,-514.39431847,0.00016438,2]
[350112112,1737633034793,-506.06384279,0.00016438,2]
[350112113,1737633034803,-500.0,0.00016438,2]
[350112114,1737633034814,-524.13108248,0.00016438,2]
[350112115,1737633034823,-500.0,0.00016438,2]
[350112116,1737633034833,-500.0,0.00016438,2]
[350112117,1737633034843,-500.0,0.00016438,2]
[350112118,1737633034853,-500.0,0.00016438,2]
[350112119,1737633034862,-500.0,0.00016438,2]
[350112120,1737633034873,-500.0,0.00016438,2]
[350112121,1737633034884,-500.0,0.00016438,2]
[350112122,1737633034893,-500.0,0.00016438,2]
[350112123,1737633034903,-500.0,0.00016438,2]
[350112124,1737633034912,-500.0,0.00016438,2]
[350112125,1737633034923,-500.0,0.00016438,2]
[350112126,1737633034932,-500.0,0.00016438,2]
[350112127,1737633034942,-500.0,0.00016438,2]
[350112128,1737633034952,-505.79160372,0.00016438,2]
[350112129,1737633034961,-500.0,0.00016438,2]
[350112130,1737633034972,-500.0,0.00016438,2]
[350112131,1737633034983,-504.7354938,0.00016438,2]
[350112132,1737633034994,-500.0,0.00016438,2]
[350112133,1737633035004,-502.11290081,0.00016438,2]
[350112134,1737633035015,-500.0,0.00016438,2]
[350112135,1737633035025,-523.12174328,0.00016438,2]
[350112136,1737633035036,-500.0,0.00016438,2]
[350112137,1737633035046,-506.42700406,0.00016438,2]
[350112138,1737633035057,-500.0,0.00016438,2]
[350112139,1737633035068,-500.0,0.00016438,2]
[350112140,1737633035077,-500.0,0.00016438,2]
[350112141,1737633035088,-500.0,0.00016438,2]
[350112142,1737633035104,-500.0,0.00016438,2]
[350112143,1737633035120,-500.93908961,0.00016438,2]
[350112144,1737633035131,-500.0,0.00016438,2]
[350112145,1737633035149,-500.0,0.00016438,2]
[350112146,1737633035158,-500.0,0.00016438,2]
[350112147,1737633035168,-500.0,0.00016438,2]
[350112148,1737633035179,-500.0,0.00016438,2]
[350112149,1737633035190,-500.0,0.00016438,2]
[350112150,1737633035201,-500.0,0.00016438,2]
[350112151,1737633035211,-500.0,0.00016438,2]
[350112152,1737633035220,-508.4808479,0.00016438,2]
[350112153,1737633035230,-500.0,0.00016438,2]
[350112154,1737633035240,-501.40852191,0.00016438,2]
[350112155,1737633035249,-622.4047729,0.00016438,2]
[350112156,1737633035260,-500.0,0.00016438,2]
[350112157,1737633035270,-509.7130476,0.00016438,2]
[350112158,1737633035281,-500.0,0.00016438,2]
[350112159,1737633035297,-1034.6,0.00016438,2]
[350112160,1737633035308,-503.03008531,0.00016438,2]
[350112161,1737633035319,-500.0,0.00016438,2]
[350112162,1737633035328,-500.0,0.00016438,2]
[350112163,1737633035338,-483.55297968,0.00016438,2]
[350112164,1737633035347,-500.0,0.00016438,2]
[350112165,1737633035357,-500.0,0.00016438,2]
[350112166,1737633035369,-338.60656946,0.00016438,2]
[350112167,1737633035380,-500.0,0.00016438,2]
[350112168,1737633035390,-566.21,0.00016438,2]
[350112169,1737633035400,-500.0,0.00016438,2]
[350112170,1737633035411,-500.0,0.00016438,2]
[350112171,1737633035421,-500.0,0.00016438,2]
[350112172,1737633035431,-506.34610234,0.00016438,2]
[350112173,1737633035440,-500.0,0.00016438,2]
[350112174,1737633035449,-500.0,0.00016438,2]
[350112175,1737633035458,-500.0,0.00016438,2]
[350112176,1737633035467,-500.0,0.00016438,2]
[350112177,1737633035476,-500.0,0.00016438,2]
[350112178,1737633035485,-500.0,0.00016438,2]
[350112179,1737633035496,-500.0,0.00016438,2]
[350112180,1737633035508,-500.0,0.00016438,2]
[350112181,1737633035519,-501.26794062,0.00016438,2]
[350112182,1737633035528,-500.0,0.00016438,2]
[350112183,1737633035538,-500.0,0.00016438,2]
[350112184,1737633035548,-422.330522,0.00016438,2]
[350112185,1737633035558,-500.0,0.00016438,2]
[350112186,1737633035568,-502.34390483,0.00016438,2]
[350112187,1737633035578,-500.0,0.00016438,2]
[350112188,1737633035588,-646.55,0.00016438,2]
[350112189,1737633035598,-500.0,0.00016438,2]
[350112190,1737633035608,-500.0,0.00016438,2]
[350112191,1737633035617,-500.0,0.00016438,2]
[350112192,1737633035627,-500.0,0.00016438,2]
[350112193,1737633035636,-500.0,0.00016438,2]
[350112194,1737633035645,-500.0,0.00016438,2]
[350112195,1737633035654,-500.0,0.00016438,2]
[350112196,1737633035663,-500.0,0.00016438,2]
[350112197,1737633035672,-500.0,0.00016438,2]
[350112198,1737633035681,-500.0,0.00016438,2]
[350112199,1737633035691,-500.0,0.00016438,2]
[350112200,1737633035699,-509.82916846,0.00016438,2]
[350112201,1737633035708,-500.0,0.00016438,2]
[350112202,1737633035718,-500.0,0.00016438,2]
[350112203,1737633035727,-500.0,0.00016438,2]
[350112204,1737633035736,-500.0,0.00016438,2]
[350112205,1737633035745,-507.18998974,0.00016438,2]
[350112206,1737633035754,-500.0,0.00016438,2]
[350112207,1737633035763,-500.0,0.00016438,2]
[350112208,1737633035772,-500.0,0.00016438,2]
[350112209,1737633035781,-500.0,0.00016438,2]
[350112210,1737633035790,-500.0,0.00016438,2]
[350112211,1737633035799,-500.0,0.00016438,2]
[350112212,1737633035809,-500.0,0.00016438,2]
[350112213,1737633035820,-500.0,0.00016438,2]
[350112214,1737633035830,-531.083444,0.00016438,2]
[350112215,1737633035839,-415.56183885,0.00016438,2]
[350112216,1737633035849,-500.0,0.00016438,2]
[350112217,1737633035858,-503.32969849,0.00016438,2]
[350112218,1737633035867,-500.0,0.00016438,2]
[350112219,1737633035877,-500.6843892,0.00016438,2]
[350112220,1737633035886,-500.0,0.00016438,2]
[350112221,1737633035895,-500.0,0.00016438,2]
[350112222,1737633035904,-509.86123177,0.00016438,2]
[350112223,1737633035913,-500.0,0.00016438,2]
[350112224,1737633035922,-500.0,0.00016438,2]
[350112225,1737633035931,-500.0,0.00016438,2]
[350112226,1737633035941,-500.0,0.00016438,2]
[350112227,1737633035950,-500.0,0.00016438,2]
[350112228,1737633035959,-499.9999014,0.00016438,2]
[350112229,1737633035968,-500.0,0.00016438,2]
[350112230,1737633035977,-500.0,0.00016438,2]
[350112231,1737633035986,-500.0,0.00016438,2]
[350112232,1737633035995,-500.0,0.00016438,2]
[350112233,1737633036005,-500.0,0.00016438,2]
[350112234,1737633036014,-500.0,0.00016438,2]
[350112235,1737633036023,-500.0,0.00016438,2]
[350112236,1737633036032,-1.2082386,0.00016438,2]
[350112237,1737633036070,-165.16615988,0.00016438,2]
[350112238,1737633036079,-500.0,0.00016438,2]
[350112239,1737633036089,-500.0,0.00016438,2]
[350112240,1737633036100,-500.0,0.00016438,2]
[350112241,1737633036111,-44.95334933,0.00016438,2]
[350112242,1737633036122,-455.04665067,0.00016438,2]
[350112243,1737633036132,-84.95334933,0.00016438,2]
[350112244,1737633036144,-415.04665067,0.00016438,2]
[350112245,1737633036155,-120.42334933,0.00016438,2]
[350112246,1737633036167,-379.57665067,0.00016438,2]
[350112247,1737633036176,-500.0,0.00016438,2]
[350112248,1737633036185,-500.0,0.00016438,2]
[350112249,1737633036194,-459.3239722,0.00016438,2]
[350112250,1737633036204,-500.0,0.00016438,2]
[350112251,1737633036213,-500.0,0.00016438,2]
[350112252,1737633036223,-500.0,0.00016438,2]
[350112253,1737633036232,-502.01125371,0.00016438,2]
[350112254,1737633036241,-497.02416252,0.00016438,2]
[350112255,1737633036250,-500.0,0.00016438,2]
[350112256,1737633036260,-500.0,0.00016438,2]
[350112257,1737633036268,-500.0,0.00016438,2]